bitfinex/quotes_ETHUSD_20240819
["timestamp","ask_amount","ask_price","bid_price","bid_amount"]
[1724072330689,3.85848,2591.7,2591.2,2.3429]
[1724072330902,0.03380055,2591.4,2591.2,2.3429]
[1724072331055,3.85848,2591.7,2591.2,2.3429]
[1724072331253,0.03380055,2591.6,2591.2,2.3429]
[1724072332075,3.85824,2591.9,2591.3,2.9424]
[1724072332279,3.85824,2591.9,2591.3,2.3924]
[1724072334223,7.7165,2591.9,2591.3,2.3924]
[1724072334534,0.93925,2591.8,2591.3,2.3924]
[1724072335512,3.85824,2591.9,2591.3,2.3924]
[1724072336324,7.71652,2591.9,2591.3,2.3924]
[1724072336560,3.8585,2591.7,2591.3,2.3924]
[1724072337106,7.71682,2591.8,2591.3,2.3924]
[1724072337428,3.85841,2591.8,2591.3,2.3924]
[1724072337620,4.45727388,2591.8,2591.3,2.3924]
[1724072338025,8.31572388,2591.8,2591.3,2.3924]
[1724072338399,4.45727388,2591.8,2591.3,2.3924]
[1724072341427,3.85841,2591.8,2591.3,2.3924]
[1724072343085,7.71684,2591.8,2591.3,2.3924]
[1724072344341,3.85841,2591.8,2591.3,2.3924]
[1724072344845,7.71682,2591.8,2591.3,2.3924]
[1724072345077,3.85849,2591.7,2591.3,2.3924]
[1724072345282,0.93929,2591.6,2591.3,2.3924]
[1724072345582,3.85849,2591.7,2591.3,2.3924]
[1724072348921,3.85878,2591.5,2591.0,9.6859]
[1724072349105,3.85901,2591.4,2591.0,9.6859]
[1724072349294,0.771779,2591.3,2591.0,9.6859]
[1724072349494,4.630949,2591.3,2591.0,2.4059]
[1724072351519,0.771779,2591.3,2591.0,2.4059]
[1724072351721,3.85901,2591.4,2591.0,2.4059]
[1724072354018,7.71804,2591.4,2591.0,2.4059]
[1724072354397,3.85909,2591.3,2591.0,2.4059]
[1724072355128,3.85892,2591.4,2591.0,2.4059]
[1724072355840,7.71795,2591.4,2591.0,2.4059]
[1724072356134,4.630875,2591.3,2591.0,2.4059]
[1724072357129,0.771795,2591.3,2591.0,2.4059]
[1724072357330,3.85894,2591.4,2591.0,2.4059]
[1724072360551,3.85908,2591.3,2591.0,2.4059]
[1724072360941,3.85923,2591.2,2591.0,2.4059]
[1724072361145,3.85923,2591.2,2590.3,1.21460253]
[1724072361146,3.86018,2590.6,2590.3,3.07463502]
[1724072361350,3.86018,2590.6,2590.3,2.2649]
[1724072361351,9.39641,2590.6,2590.3,2.2649]
[1724072361539,5.53618,2590.6,2590.3,2.2649]
[1724072361747,6.475788,2590.6,2590.3,2.2649]
[1724072363843,3.86026,2590.5,2590.3,2.2649]
[1724072364578,5.53652,2590.4,2590.0,2.379]
[1724072364783,3.86077,2590.2,2590.0,2.379]
[1724072365138,3.86063,2590.3,2590.0,2.379]
[1724072365341,3.8607,2590.2,2590.0,2.379]
[1724072367609,3.86061,2590.3,2590.0,2.379]
[1724072369267,6.17139,2590.7,2590.1,2.2876]
[1724072369268,3.86025,2590.5,2590.1,2.2876]
[1724072372157,3.86011,2590.6,2590.1,2.2876]
[1724072373423,3.86026,2590.5,2590.1,2.2876]
[1724072374724,3.86044,2590.4,2590.1,2.2876]
[1724072375718,3.86027,2590.5,2590.1,2.2876]
[1724072376812,3.86011,2590.6,2590.1,2.2876]
[1724072377163,3.86026,2590.5,2590.1,2.2876]
[1724072381077,3.86008,2590.7,2590.2,2.2942]
[1724072383811,3.85983,2590.8,2590.2,2.2942]
[1724072384121,3.85997,2590.7,2590.2,2.69122]
[1724072385008,3.85997,2590.7,2590.2,2.2942]
[1724072386648,3.86011,2590.6,2590.2,2.2942]
[1724072388258,3.86029,2590.5,2590.2,2.2942]
[1724072392121,3.86013,2590.6,2590.2,2.2942]
[1724072392447,1.676,2590.8,2590.2,2.2942]
[1724072392750,3.85982,2590.8,2590.3,2.4781]
[1724072393421,7.71972,2590.8,2590.3,2.4781]
[1724072394340,3.85999,2590.7,2590.3,2.4781]
[1724072398410,9.39572,2590.8,2590.3,2.4781]
[1724072399651,5.53582,2590.8,2590.3,2.4781]
[1724072399811,3.85967,2590.9,2590.3,3.02591]
[1724072400143,3.85942,2591.1,2590.5,2.3656]
[1724072400296,3.85916,2591.3,2590.5,2.3656]
[1724072400496,3.85916,2591.3,2590.7,2.2588]
[1724072401267,5.53488,2591.5,2590.7,2.2588]
[1724072401268,5.53477,2591.5,2590.7,2.4919]
[1724072401552,3.85892,2591.4,2590.8,3.0419]
[1724072401697,1.676,2591.5,2590.8,3.86869]
[1724072401892,3.85883,2591.5,2590.9,2.4723]
[1724072402297,3.85892,2591.4,2590.9,2.4723]
[1724072403098,7.71798,2591.4,2590.9,2.4723]
[1724072403435,3.85892,2591.4,2590.9,2.4723]
[1724072403604,7.71792,2591.4,2590.9,2.4723]
[1724072404392,3.85929,2591.2,2590.9,2.4723]
[1724072404669,1.676,2591.1,2590.9,2.4723]
[1724072404830,5.53543,2591.1,2590.7,2.4723]
[1724072405020,3.85973,2590.9,2590.7,2.4723]
[1724072405213,3.85981,2590.8,2590.7,2.4723]
[1724072406133,7.71912,2591.0,2590.7,2.4723]
[1724072406346,7.71913,2591.0,2590.7,2.4723]
[1724072406520,3.85966,2590.9,2590.7,2.4723]
[1724072408722,3.85966,2590.9,2590.5,2.3974]
[1724072409838,7.7194,2590.9,2590.5,2.3974]
[1724072410162,3.85966,2590.9,2590.5,2.3974]
[1724072411756,3.85966,2590.9,2590.4,3.0]
[1724072411757,3.85989,2590.8,2590.4,3.0]
[1724072412078,3.85989,2590.8,2590.3,2.385]
[1724072412079,3.86011,2590.6,2590.3,2.385]
[1724072412273,3.86011,2590.6,2590.0,7.28]
[1724072412433,3.86011,2590.6,2590.1,2.385]
[1724072412633,3.86027,2590.5,2590.1,2.385]
[1724072413072,4.658501,2590.6,2590.1,2.385]
[1724072413370,5.53598,2590.7,2590.1,2.385]
[1724072413567,3.85998,2590.7,2590.1,2.385]
[1724072413780,3.85994,2590.8,2590.1,2.385]
[1724072414063,3.85996,2590.7,2590.2,2.3459]
[1724072416648,7.71999,2590.7,2590.2,2.3459]
[1724072417255,3.85996,2590.7,2590.2,2.3459]
[1724072419156,7.72006,2590.7,2590.2,2.3459]
[1724072419370,4.83977999,2590.7,2590.2,2.3459]
[1724072419881,3.85996,2590.7,2590.2,2.3459]
[1724072420379,7.72003,2590.7,2590.2,2.3459]
[1724072420585,3.85996,2590.7,2590.2,2.3459]
[1724072422239,7.72,2590.7,2590.2,2.3459]
[1724072422666,3.85996,2590.7,2590.2,2.3459]
[1724072422870,8.93816299,2590.7,2590.2,2.3459]
[1724072423912,5.07808299,2590.7,2590.2,2.3459]
[1724072424298,8.93815299,2590.7,2590.2,2.3459]
[1724072425008,5.07808299,2590.7,2590.2,2.3459]
[1724072425169,3.85996,2590.7,2590.2,2.3459]
[1724072426569,2.07847987,2590.9,2590.2,2.3459]
[1724072426823,3.85972,2590.9,2590.2,4.0219]
[1724072427432,3.85982,2590.8,2590.2,4.0219]
[1724072428472,7.71948,2590.9,2590.2,4.0219]
[1724072428673,3.85981,2590.8,2590.2,4.0219]
[1724072428997,3.85968,2590.9,2590.3,2.4195]
[1724072430791,3.85984,2590.8,2590.3,2.4195]
[1724072431393,3.85968,2590.9,2590.3,2.4195]
[1724072431610,7.71944,2590.9,2590.3,2.4195]
[1724072431934,3.85968,2590.9,2590.3,2.4195]
[1724072432536,7.71942,2590.9,2590.3,2.4195]
[1724072432838,3.85968,2590.9,2590.3,2.4195]
[1724072433218,7.71944,2590.9,2590.3,2.4195]
[1724072433418,7.71945,2590.9,2590.3,2.4195]
[1724072434349,2.42871482,2591.1,2590.3,2.942069]
[1724072434504,3.85923,2591.2,2590.5,2.3021]
[1724072434846,7.71852,2591.2,2590.7,2.3021]
[1724072435199,3.85937,2591.1,2590.7,2.3021]
[1724072435651,5.53537,2591.1,2590.7,2.3021]
[1724072438835,3.85937,2591.1,2590.7,2.3021]
[1724072439015,6.34039,2591.4,2590.8,0.23021]
[1724072439215,3.85899,2591.4,2590.8,0.23021]
[1724072439549,11.82439109,2591.5,2590.9,2.4037]
[1724072439743,6.28952109,2591.5,2590.9,2.4037]
[1724072439952,11.82436109,2591.5,2590.9,2.4037]
[1724072440258,3.85893,2591.4,2590.9,2.4037]
[1724072440607,1.676,2591.3,2590.9,2.4037]
[1724072440921,3.85922,2591.2,2590.9,2.4037]
[1724072441133,5.53508,2591.3,2590.9,2.4037]
[1724072446060,3.85922,2591.2,2590.9,2.4037]
[1724072447614,5.53508,2591.3,2590.9,2.4037]
[1724072451861,3.85921,2591.2,2590.9,2.4037]
[1724072452435,3.85957,2591.0,2590.6,2.403]
[1724072452630,5.53539,2591.1,2590.6,2.403]
[1724072458166,3.85939,2591.1,2590.6,2.403]
[1724072459987,4.798699,2591.2,2590.6,2.403]
[1724072460164,2.43003928,2591.5,2590.8,2.451]
[1724072460479,2.43003928,2591.5,2590.9,1.0177]
[1724072460480,3.85877,2591.5,2590.9,1.0177]
[1724072460780,3.85893,2591.4,2590.9,0.55]
[1724072460994,3.85893,2591.4,2590.8,2.451]
[1724072460995,3.85915,2591.3,2590.8,2.451]
[1724072461197,0.939408,2591.2,2590.8,2.451]
[1724072462410,3.85944,2591.1,2590.8,2.451]
[1724072463306,5.53528,2591.2,2590.8,2.451]
[1724072463472,3.85928,2591.2,2590.8,2.451]
[1724072465013,3.85944,2591.1,2590.8,2.451]
[1724072465161,4.631312,2591.1,2590.8,2.451]
[1724072466965,3.85922,2591.2,2590.8,2.451]
[1724072468852,7.71826,2591.3,2590.8,2.451]
[1724072469028,3.85922,2591.2,2590.8,2.451]
[1724072471879,3.85901,2591.4,2590.8,2.451]
[1724072472032,5.53484,2591.5,2590.8,2.8637]
[1724072472241,3.85868,2591.6,2591.0,2.4727]
[1724072472498,2.43051493,2591.8,2591.3,2.4727]
[1724072472766,6.28864757,2592.1,2591.5,2.4727]
[1724072472982,3.85788,2592.1,2591.6,0.42258702]
[1724072473259,3.85781,2592.2,2591.5,2.4727]
[1724072473260,3.85803,2592.0,2591.5,2.4727]
[1724072475275,5.53389,2592.1,2591.5,2.4727]
[1724072475489,3.85781,2592.2,2591.7,2.2972]
[1724072476926,3.85781,2592.2,2591.6,1.676]
[1724072476927,6.28788724,2592.6,2591.9,2.3806]
[1724072477131,7.96388724,2592.6,2591.9,2.3806]
[1724072477644,3.85736,2592.5,2591.9,2.3806]
[1724072477886,5.53344,2592.4,2591.9,2.3806]
[1724072478188,1.676,2592.2,2591.5,2.3598]
[1724072478361,3.85794,2592.1,2591.5,2.3598]
[1724072479641,1.676,2591.6,2591.2,2.3598]
[1724072479943,1.676,2591.4,2591.2,2.3598]
[1724072480129,5.53469,2591.6,2591.2,2.3598]
[1724072480576,3.85869,2591.6,2591.2,2.3598]
[1724072481999,3.85843,2591.8,2591.2,2.3598]
[1724072482000,3.85848,2591.7,2591.2,2.3598]
[1724072482133,4.244323,2591.7,2591.2,2.3598]
[1724072484477,8.102893,2591.7,2591.2,2.3598]
[1724072484890,4.244323,2591.7,2591.2,2.3598]
[1724072486743,3.85862,2591.6,2591.2,2.3598]
[1724072487341,4.244313,2591.7,2591.2,2.3598]
[1724072488786,3.8583,2591.9,2591.2,2.3598]
[1724072488968,4.797155,2592.1,2590.6,7.95817026]
[1724072488969,0.939165,2592.1,2591.0,2.468]
[1724072489174,0.939165,2592.1,2590.8,3.85974]
[1724072489175,3.85808,2592.0,2591.2,2.468]
[1724072489341,3.85808,2592.0,2591.3,0.55]
[1724072489342,7.71624,2592.0,2591.3,0.55]
[1724072489767,3.8582,2591.9,2591.3,0.55]
[1724072489974,3.85808,2592.0,2591.3,0.55]
[1724072490176,8.1959145,2592.0,2591.4,2.3591]
[1724072490377,4.3378045,2592.0,2591.4,2.3591]
[1724072491777,3.85818,2591.9,2591.4,2.3591]
[1724072493087,3.85804,2592.0,2591.4,2.3591]
[1724072493287,3.85804,2592.0,2591.4,2.65001]
[1724072494778,3.85788,2592.1,2591.6,2.4203]
[1724072496350,3.85806,2592.0,2591.6,2.4203]
[1724072496749,3.85788,2592.1,2591.6,2.4203]
[1724072496988,3.85773,2592.2,2591.6,2.66233]
[1724072498852,3.85739,2592.5,2591.7,2.9593]
[1724072499088,3.85739,2592.5,2591.8,2.729433]
[1724072499294,7.7148,2592.5,2591.9,0.55]
[1724072499501,3.85743,2592.4,2591.9,0.55]
[1724072501350,3.85739,2592.5,2592.0,2.2969]
[1724072503570,4.796239,2592.5,2592.0,2.2969]
[1724072503753,3.85739,2592.5,2592.0,2.2969]
[1724072503954,3.85755,2592.4,2592.0,2.2969]
[1724072508056,3.85728,2592.5,2592.0,2.2969]
[1724072508264,5.53092,2592.8,2592.2,2.2699]
[1724072508706,3.85714,2592.6,2592.2,2.2699]
[1724072509070,4.795946,2592.6,2592.2,2.2699]
[1724072514140,8.653196,2592.6,2592.2,2.2699]
[1724072514341,3.8573,2592.5,2592.2,2.2699]
[1724072516446,3.85743,2592.4,2592.2,2.2699]
[1724072519362,3.8573,2592.5,2592.2,2.2699]
[1724072523004,3.85744,2592.4,2592.2,2.2699]
[1724072523208,0.771444,2592.4,2592.2,2.2699]
[1724072523539,3.85731,2592.5,2592.2,2.2699]
[1724072523726,3.85714,2592.6,2592.2,2.2699]
[1724072524766,3.85728,2592.5,2592.2,2.2699]
[1724072525299,3.85716,2592.6,2592.2,2.2699]
[1724072526147,4.646461,2592.7,2592.2,2.2699]
[1724072526442,3.85707,2592.7,2592.2,2.2699]
[1724072528250,3.85719,2592.6,2592.2,2.2699]
[1724072531386,2.42489504,2593.0,2592.4,2.4041]
[1724072531387,3.85666,2593.0,2592.4,2.4041]
[1724072531559,3.85661,2593.0,2592.4,2.4041]
[1724072531882,3.85671,2592.9,2592.4,2.4041]
[1724072532199,3.85671,2592.9,2592.4,2.889609]
[1724072532986,1.674,2592.9,2592.4,2.4041]
[1724072533195,3.8571,2592.7,2592.4,2.4041]
[1724072533579,3.85723,2592.6,2592.4,2.4041]
[1724072540065,3.85701,2592.7,2592.4,2.4041]
[1724072540264,7.71409,2592.7,2592.4,2.4041]
[1724072540490,3.85701,2592.7,2592.4,2.4041]
[1724072552262,3.85701,2592.7,2592.2,2.4865]
[1724072552432,4.871472,2592.7,2592.2,2.4865]
[1724072552637,3.85728,2592.5,2592.2,2.4865]
[1724072552832,3.85701,2592.7,2591.6,2.4865]
[1724072552833,4.0909,2592.4,2591.6,2.4865]
[1724072553034,3.85832,2591.8,2591.6,2.4865]
[1724072553366,3.85832,2591.8,2591.3,2.4527]
[1724072554523,3.85832,2591.8,2591.3,5.4527]
[1724072554924,3.85832,2591.8,2591.3,2.4527]
[1724072555937,3.85819,2591.9,2591.3,2.4527]
[1724072556339,3.85819,2591.9,2591.3,2.86537]
[1724072558259,3.85836,2591.8,2591.3,2.86537]
[1724072558460,3.85891,2591.4,2591.3,2.4527]
[1724072558666,3.85904,2591.4,2591.1,2.3882]
[1724072558866,3.85902,2591.4,2591.1,2.3882]
[1724072559168,3.85902,2591.4,2590.4,2.2942]
[1724072559169,3.85935,2591.2,2590.4,2.2942]
[1724072559462,3.85935,2591.2,2590.6,2.2942]
[1724072559665,3.85918,2591.3,2590.7,1.674]
[1724072560247,3.85918,2591.3,2590.8,2.4596]
[1724072560574,3.85916,2591.3,2590.8,2.4596]
[1724072561073,3.85924,2591.2,2590.8,2.4596]
[1724072561751,3.85916,2591.3,2590.8,2.4596]
[1724072563129,7.71835,2591.3,2590.8,2.4596]
[1724072563329,7.71832,2591.3,2590.8,2.4596]
[1724072563780,3.85924,2591.2,2590.8,2.4596]
[1724072563929,3.85916,2591.3,2590.8,2.4596]
[1724072564842,3.85924,2591.2,2590.8,2.4596]
[1724072565049,3.85916,2591.3,2590.8,2.4596]
[1724072565249,3.85887,2591.5,2590.8,2.4596]
[1724072565250,3.85893,2591.4,2590.8,2.70556]
[1724072566543,3.85893,2591.4,2590.8,2.4596]
[1724072567271,1.674,2591.5,2590.8,2.4596]
[1724072567476,2.4551,2591.8,2590.9,1.674]
[1724072567477,3.85847,2591.7,2590.9,1.674]
[1724072567687,3.85847,2591.7,2591.0,3.43096]
[1724072569275,3.85863,2591.6,2591.0,3.43096]
[1724072570781,3.85885,2591.5,2591.0,3.43096]
[1724072571073,3.85885,2591.5,2591.0,3.0176]
[1724072571986,9.39133,2591.6,2591.0,3.0176]
[1724072572280,5.53263,2591.6,2591.0,3.0176]
[1724072572582,9.39134,2591.6,2591.0,3.0176]
[1724072572949,9.39133,2591.6,2591.0,3.0176]
[1724072574677,5.53263,2591.6,2591.0,3.0176]
[1724072574876,5.53263,2591.6,2591.0,3.31936]
[1724072575983,3.85863,2591.6,2591.0,3.31936]
[1724072576757,3.85863,2591.6,2591.1,2.3957]
[1724072578736,1.674,2591.7,2591.1,2.3957]
[1724072579058,3.85825,2591.9,2591.3,2.3957]
[1724072579373,3.85838,2591.8,2591.3,2.3957]
[1724072580739,3.85804,2592.0,2591.4,2.47837229]
[1724072580974,3.85804,2592.0,2591.4,2.69577]
[1724072582977,3.85818,2591.9,2591.4,2.69577]
[1724072584571,7.71619,2592.0,2591.4,2.69577]
[1724072585095,3.85783,2592.2,2591.6,2.4246]
[1724072585243,3.85766,2592.3,2591.6,2.4246]
[1724072585443,3.85773,2592.2,2591.8,2.4224]
[1724072587294,3.85817,2591.9,2591.3,2.4799]
[1724072587600,6.085133,2592.1,2591.4,3.0299]
[1724072587748,5.53196,2592.1,2591.4,3.80029]
[1724072587952,5.53196,2592.1,2591.5,2.4799]
[1724072588584,7.71595,2592.1,2591.5,2.4799]
[1724072589969,3.85805,2592.0,2591.5,2.4799]
[1724072591893,3.85818,2591.9,2591.5,2.4799]
[1724072592051,3.85804,2592.0,2591.5,2.4799]
[1724072592914,2.418,2592.3,2591.5,2.4799]
[1724072593063,4.02,2592.4,2591.3,2.321]
[1724072593064,3.85858,2591.7,2591.3,2.321]
[1724072593274,4.244478,2591.6,2591.3,2.321]
[1724072593594,3.85862,2591.6,2591.3,2.321]
[1724072594562,3.85849,2591.7,2591.3,2.321]
[1724072597866,3.85908,2591.3,2590.9,2.4085]
[1724072598903,3.85908,2591.3,2590.9,2.40764312]
[1724072599494,2.42453917,2592.3,2591.0,4.57]
[1724072599696,2.42453917,2592.3,2591.3,4.02]
[1724072599697,3.85764,2592.3,2591.3,4.02]
[1724072599878,3.85764,2592.3,2591.4,0.62715931]
[1724072600080,3.85764,2592.3,2591.5,0.46471593]
[1724072600304,3.85753,2592.4,2591.6,0.55]
[1724072600708,3.85774,2592.2,2591.6,0.55]
[1724072600921,4.70630711,2592.6,2591.1,3.0]
[1724072600922,4.243734,2592.1,2591.1,3.0]
[1724072601219,3.85803,2592.0,2591.2,0.55]
[1724072601430,3.85796,2592.1,2591.2,35.0]
[1724072601593,3.85796,2592.1,2591.3,0.55]
[1724072601594,8.349126,2592.1,2591.3,0.55]
[1724072601794,8.349126,2592.1,2591.3,3.55]
[1724072601795,4.491126,2592.1,2591.3,3.55]
[1724072602114,4.491126,2592.1,2591.4,2.3194]
[1724072602584,0.633166,2592.1,2591.4,2.3194]
[1724072602784,3.85773,2592.2,2591.4,2.60634]
[1724072603315,3.85767,2592.3,2591.4,2.60634]
[1724072603495,3.85767,2592.3,2591.6,2.2761]
[1724072603680,4.62917,2592.3,2591.7,0.62715936]
[1724072604122,3.85675,2592.9,2591.8,2.2761]
[1724072604322,2.476,2592.8,2592.0,2.3298]
[1724072604556,0.385675,2592.8,2592.1,0.6271499]
[1724072604836,0.385675,2592.8,2592.2,2.3298]
[1724072605437,4.242505,2592.8,2592.2,2.3298]
[1724072608022,8.099465,2592.8,2592.2,2.3298]
[1724072608260,4.242505,2592.8,2592.2,2.3298]
[1724072608467,3.85699,2592.7,2592.2,2.3298]
[1724072608771,0.8099495,2592.6,2592.2,2.3298]
[1724072609427,4.6671095,2592.6,2592.2,2.3298]
[1724072610662,3.85729,2592.5,2592.2,2.3298]
[1724072610862,3.85744,2592.4,2592.2,2.3298]
[1724072611064,0.385744,2592.3,2592.2,2.3298]
[1724072611374,3.85735,2592.5,2592.2,2.3298]
[1724072611674,4.6671095,2592.6,2592.2,2.3298]
[1724072611675,0.8099495,2592.6,2592.2,2.3298]
[1724072611972,2.42395637,2593.1,2592.4,2.4571]
[1724072611973,3.85646,2593.1,2592.4,2.4571]
[1724072612141,3.85646,2593.1,2592.3,0.78298]
[1724072612142,3.85676,2592.9,2592.6,2.4571]
[1724072612326,3.85676,2592.9,2592.3,0.55]
[1724072612327,7.71357,2592.9,2592.4,2.4571]
[1724072612522,3.85676,2592.9,2592.4,2.4571]
[1724072613440,7.71353,2592.9,2592.4,2.4571]
[1724072613762,4.6666776,2592.9,2592.4,2.4571]
[1724072613930,3.85676,2592.9,2592.4,2.4571]
[1724072621796,3.85685,2592.8,2592.4,2.4571]
[1724072624006,7.71377,2592.8,2592.4,2.4571]
[1724072624205,3.85685,2592.8,2592.4,2.4571]
[1724072625499,3.857,2592.7,2592.4,2.4571]
[1724072625757,3.85762,2592.3,2592.0,2.2841]
[1724072625902,3.85749,2592.4,2592.0,2.2841]
[1724072626102,3.8576,2592.3,2592.0,2.2841]
[1724072626326,4.629109,2592.3,2592.0,2.2841]
[1724072627748,3.8578,2592.2,2592.0,2.2841]
[1724072628742,0.771509,2592.3,2592.0,2.2841]
[1724072628743,4.629089,2592.3,2592.0,2.2841]
[1724072628916,3.85758,2592.3,2592.0,2.2841]
[1724072631424,0.3857,2592.6,2591.7,2.3386]
[1724072631425,2.4166,2592.4,2591.7,2.3386]
[1724072631715,6.27411,2592.4,2591.5,2.3386]
[1724072631966,3.85799,2592.1,2591.5,2.3386]
[1724072632129,3.85803,2592.0,2591.5,2.3386]
[1724072632335,4.09934,2592.3,2590.6,35.0]
[1724072632336,3.85854,2591.7,2590.6,35.0]
[1724072632548,3.85854,2591.7,2590.8,2.3714]
[1724072632549,3.85862,2591.6,2590.8,2.3714]
[1724072632960,3.85854,2591.7,2590.8,2.3714]
[1724072633851,3.85854,2591.7,2591.0,2.3895]
[1724072634024,3.85854,2591.7,2591.1,2.9395]
[1724072634354,3.85847,2591.7,2591.1,2.9395]
[1724072635049,3.85834,2591.8,2591.1,2.9395]
[1724072635255,0.385803,2591.9,2591.1,2.9395]
[1724072635418,0.385803,2591.9,2591.2,2.3394]
[1724072635619,0.385803,2591.9,2591.4,2.3394]
[1724072636136,4.244003,2591.9,2591.4,2.3394]
[1724072636469,0.8102103,2591.8,2591.4,2.3394]
[1724072637168,3.8582,2591.9,2591.4,2.3394]
[1724072637525,3.85804,2592.0,2591.4,2.3394]
[1724072639393,3.85774,2592.2,2591.6,2.3394]
[1724072639573,3.85774,2592.2,2591.6,2.62834]
[1724072639743,3.85774,2592.2,2591.6,2.3394]
[1724072640500,3.85789,2592.1,2591.6,2.3394]
[1724072641684,3.85807,2592.0,2591.6,2.3394]
[1724072641983,3.85789,2592.1,2591.6,2.3394]
[1724072642347,3.8581,2592.0,2591.6,2.3394]
[1724072642679,4.629699,2592.0,2591.6,2.3394]
[1724072642878,3.85817,2591.9,2591.6,2.3394]
[1724072643588,0.771599,2592.0,2591.6,2.3394]
[1724072643772,3.85775,2592.2,2591.6,2.3394]
[1724072644662,3.85787,2592.1,2591.6,2.3394]
[1724072644866,3.8572,2592.6,2591.8,2.3174]
[1724072645065,3.8572,2592.6,2591.7,0.55]
[1724072645066,3.8572,2592.6,2592.0,2.3174]
[1724072647284,3.85728,2592.5,2592.0,2.3174]
[1724072648256,3.85744,2592.4,2592.0,2.3174]
[1724072648659,3.8571,2592.7,2592.0,2.3174]
[1724072648859,3.85729,2592.5,2592.0,2.3174]
[1724072651205,4.24286,2592.6,2592.0,2.3174]
[1724072651365,3.85715,2592.6,2592.0,2.3174]
[1724072652564,3.85728,2592.5,2592.0,2.3174]
[1724072654462,3.85715,2592.6,2592.0,2.3174]
[1724072654962,3.857,2592.7,2591.8,3.0]
[1724072654963,3.857,2592.7,2592.2,2.49]
[1724072655471,3.85695,2592.8,2592.2,2.49]
[1724072655889,9.9705,2593.1,2592.2,2.49]
[1724072655890,3.85706,2592.7,2592.2,2.49]
[1724072657618,4.24252,2592.8,2592.2,2.49]
[1724072657816,3.85701,2592.7,2592.2,2.49]
[1724072658368,7.71351,2592.9,2592.2,2.49]
[1724072658570,8.733911,2592.9,2592.3,0.55]
[1724072659719,8.733911,2592.9,2592.4,2.3087]
[1724072660224,1.020401,2592.9,2592.4,2.3087]
[1724072660368,3.8566,2593.0,2592.4,2.3087]
[1724072661633,3.85646,2593.1,2592.4,2.3087]
[1724072661634,3.85669,2592.9,2592.4,2.3087]
[1724072662995,3.85646,2593.1,2592.4,2.3087]
[1724072663196,3.85646,2593.1,2592.5,3.21457]
[1724072663409,3.85646,2593.1,2592.6,0.55]
[1724072663893,3.85686,2592.8,2592.5,2.3787]
[1724072664098,4.242546,2592.8,2592.5,2.3787]
[1724072664316,3.85686,2592.8,2592.5,2.3787]
[1724072664515,3.85671,2592.9,2592.5,2.3787]
[1724072665402,3.85691,2592.8,2592.5,2.3787]
[1724072666145,3.85648,2593.1,2592.5,2.3787]
[1724072666294,3.85648,2593.1,2592.7,2.3703]
[1724072666493,3.85655,2593.0,2592.7,2.3703]
[1724072667636,3.85641,2593.1,2592.7,2.3703]
[1724072668030,7.71289,2593.1,2592.7,2.3703]
[1724072668352,7.71291,2593.1,2592.7,2.3703]
[1724072668510,3.85641,2593.1,2592.7,2.3703]
[1724072669203,9.98598,2593.1,2592.5,2.3498]
[1724072669408,3.85661,2593.0,2592.5,2.3498]
[1724072670614,3.85661,2593.0,2592.6,0.55]
[1724072671653,3.8566,2593.0,2592.6,0.55]
[1724072672639,3.8567,2592.9,2592.6,0.55]
[1724072673739,3.85685,2592.8,2592.6,0.55]
[1724072673943,3.85685,2592.8,2592.5,2.3498]
[1724072674141,3.85734,2592.5,2592.3,2.3595]
[1724072676224,3.85715,2592.6,2592.3,2.3595]
[1724072676560,3.8574,2592.5,2592.3,2.3595]
[1724072677059,7.7148,2592.5,2592.3,2.3595]
[1724072677419,3.8574,2592.5,2592.3,2.3595]
[1724072678576,3.85742,2592.4,2592.3,2.3595]
[1724072678890,3.85801,2592.1,2591.9,2.4793]
[1724072679038,3.85801,2592.1,2591.7,2.4793]
[1724072681547,3.85802,2592.0,2591.7,2.4793]
[1724072682049,3.85802,2592.0,2591.4,9.5745]
[1724072682050,3.85839,2591.8,2591.4,9.5745]
[1724072682399,3.85862,2591.6,2591.1,7.28]
[1724072682565,7.71732,2591.6,2591.2,2.2945]
[1724072682907,3.85862,2591.6,2591.2,2.2945]
[1724072683652,3.85849,2591.7,2591.2,2.2945]
[1724072685901,3.85811,2592.0,2591.3,2.9509]
[1724072686901,3.85817,2591.9,2591.3,2.9509]
[1724072687405,3.85803,2592.0,2591.4,2.2976]
[1724072689107,3.85817,2591.9,2591.4,2.2976]
[1724072689304,4.629784,2591.9,2591.4,2.2976]
[1724072689605,3.85817,2591.9,2591.4,2.2976]
[1724072692065,3.85804,2592.0,2591.4,2.2976]
[1724072692874,2.3871,2592.4,2591.4,2.2976]
[1724072693081,3.85779,2592.2,2591.6,2.4642]
[1724072693765,3.85779,2592.2,2591.7,0.55]
[1724072695847,3.85744,2592.4,2591.8,2.4718]
[1724072695987,3.85744,2592.4,2591.7,0.55]
[1724072695988,3.85744,2592.4,2592.0,2.4718]
[1724072696301,3.85763,2592.3,2592.0,2.4718]
[1724072698302,3.85745,2592.4,2592.0,2.4718]
[1724072698839,7.71499,2592.4,2592.0,2.4718]
[1724072699039,3.85745,2592.4,2592.0,2.4718]
[1724072699337,3.85757,2592.3,2592.0,2.4718]
[1724072699556,3.85749,2592.4,2592.0,2.4718]